lending/lending_fUSD_20250406
["ID","MTS","AMOUNT","RATE_DAILY","PERIOD"]
[357236080,1743925643081,-500.0,0.00050458,60]
[357236081,1743925643102,-500.0,0.00052527,60]
[357236082,1743925643123,-500.0,0.00053589,60]
[357236083,1743925643144,-500.0,0.00054381,60]
[357236084,1743925643164,-500.0,0.00057462,120]
[357236085,1743925643185,-500.0,0.00059237,120]
[357236086,1743925643206,-500.0,0.00061233,120]
[357236087,1743925643226,-500.0,0.00062399,120]
[357236088,1743925643246,-500.0,0.00066381,120]
[357236089,1743925643267,-600.0,0.00066712,120]
[357236090,1743925643288,-600.0,0.00066986,120]
[357236091,1743925643309,-600.0,0.0006726,120]
[357236092,1743925643330,-150.0,0.000673,30]
[357236093,1743925643350,-150.0,0.000673,30]
[357236094,1743925643371,-784.62,0.000673,30]
[357236095,1743925643390,-150.0,0.000673,30]
[357236096,1743925643411,-150.0,0.000673,30]
[357236097,1743925643430,-445.06,0.000673,30]
[357236098,1743925643450,-397.95,0.000673,30]
[357236099,1743925643471,-784.62,0.000673,30]
[357236100,1743925643491,-150.0,0.000673,30]
[357236101,1743925643511,-445.06,0.000673,30]
[357236102,1743925643531,-150.0,0.000673,30]
[357236103,1743925643551,-784.62,0.000673,30]
[357236104,1743925643572,-445.06,0.000673,30]
[357236105,1743925643592,-150.0,0.000673,30]
[357236106,1743925643612,-150.0,0.000673,30]
[357236107,1743925643632,-600.0,0.00067808,120]
[357236108,1743925643652,-600.0,0.00068356,120]
[357236109,1743925643672,-505.39376365,0.00068521,120]
[357236110,1743925643693,-500.0,0.00068691,120]
[357236111,1743925643717,-291.1051229,0.00068792,2]
[357236112,1743925643737,-303.70618923,0.00068904,120]
[357236113,1743925643759,-600.0,0.00068904,120]
[357236114,1743925643779,-150.0,0.00069,30]
[357236115,1743925643800,-150.0,0.00069,30]
[357236116,1743925643820,-900.89,0.00069,30]
[357236117,1743925643844,-155.67,0.00069,30]
[357236118,1743925643864,-150.0,0.00069,30]
[357236119,1743925643886,-784.62,0.00069,30]
[357236120,1743925643908,-314.76,0.00069,30]
[357236121,1743925643929,-150.0,0.00069,30]
[357236122,1743925643949,-150.0,0.00069,30]
[357236123,1743925643971,-445.06,0.00069,30]
[357236124,1743925643993,-150.0,0.00069,30]
[357236125,1743925644014,-347.7,0.00069,30]
[357236126,1743925644034,-200.0,0.0006925,30]
[357236127,1743925644054,-176.48,0.00069285,120]
[357236128,1743925644074,-600.0,0.00069452,120]
[357236129,1743925644094,-250.0,0.00069661,120]
[357236130,1743925644116,-459.33,0.00069741,2]
[357236131,1743925644137,-600.0,0.0007,120]
[357236132,1743925644157,-500.0,0.0007,30]
[357236133,1743925644178,-1030.26,0.0007035,30]
[357236134,1743925644198,-600.0,0.00070548,120]
[357236135,1743925644221,-600.0,0.00071096,120]
[357236136,1743925644242,-166.71,0.00071196,2]
[357236137,1743925644263,-459.33,0.00072005,2]
[357236138,1743925644284,-151.0,0.00073425,120]
[357236139,1743925644305,-205.2,0.00074112,120]
[357236140,1743925644326,-459.33,0.00074268,2]
[357236141,1743925644455,-459.33,0.00076532,2]
[357236142,1743925644482,-949.971443,0.00077,120]
[357236143,1743925644505,-150.0,0.00077091,7]
[357236144,1743925644529,-900.0,0.00078,120]
[357236145,1743925644551,-827.01,0.00078168,2]
[357236146,1743925644573,-459.33,0.00078796,2]
[357236147,1743925644594,-2456.51,0.00079603,2]
[357236148,1743925644615,-500.0,0.0008,30]
[357236149,1743925644636,-459.33,0.0008106,2]
[357236150,1743925644657,-165.6138,0.00082091,30]
[357236151,1743925644679,-6938.392,0.00082091,120]
[357236152,1743925644702,-806.11,0.00082091,120]
[357236153,1743925644729,-151.67485452,0.00082091,15]
[357236154,1743925644752,-265.19757982,0.00082181,6]
[357236155,1743925647144,-500.0,0.00058518,120]
[357236156,1743925647164,-500.0,0.0005872,120]
[357236158,1743925647184,-500.0,0.00058728,120]
[357236159,1743925647204,-150.0,0.000593,30]
[357236160,1743925647225,-500.0,0.00063277,120]
[357236161,1743925647245,-600.0,0.00071644,120]
[357236162,1743925647266,-4318.45837643,0.00082181,6]
[357236163,1743925808346,652.359585,7.945e-05,2]
[357236164,1743925832446,-206.67,0.000368,2]
[357236165,1743925832456,-238.27350852,0.00041096,90]
[357236278,1743925840437,-661.95385311,0.00041096,90]
[357236419,1743925843634,-99.77263837,0.00041096,90]
[357236420,1743925843644,-391.26821374,0.00041096,120]
[357236421,1743925843885,-308.73178626,0.00041096,120]
[357236422,1743925843894,-620.02,0.000417,7]
[357236423,1743925843908,-491.57847962,0.000477,120]
[357236424,1743925843917,-2000.0,0.000478,30]
[357236425,1743925843927,-788.9089337,0.00048,120]
[357236426,1743925844633,-520.1518488,0.00048,120]
[357236427,1743925844643,-500.0,0.00049215,2]
[357236428,1743925844652,-516.68,0.000522,14]
[357236429,1743925844661,-45002.24851292,0.0006,120]
[357236430,1743925844670,-150.5,0.0006097,120]
[357236431,1743925844679,-150.5,0.0006098,120]
[357236432,1743925844689,-150.5,0.0006099,120]
[357236433,1743925844698,-150.5,0.0006287,120]
[357236434,1743925844708,-150.5,0.0006288,120]
[357236435,1743925844717,-150.5,0.0006289,120]
[357236436,1743925844727,-160.19,0.0006489,120]
[357236437,1743925844737,-500.0,0.00066164,120]
[357236438,1743925844746,-500.0,0.00066164,120]
[357236439,1743925844757,-500.0,0.00066712,120]
[357236440,1743925844767,-500.0,0.00066712,120]
[357236441,1743925844776,-207.25837023,0.0006726,120]
[357236444,1743925847024,-292.74162977,0.0006726,120]
[357236445,1743925847034,-500.0,0.0006726,120]
[357236446,1743925847043,-500.0,0.00067808,120]
[357236447,1743925847053,-500.0,0.00067808,120]
[357236448,1743925847062,-500.0,0.0006879,30]
[357236449,1743925847072,-500.0,0.0006879,30]
[357236450,1743925847081,-500.0,0.0006879,30]
[357236451,1743925847091,-500.0,0.0006879,30]
[357236452,1743925847100,-500.0,0.0006879,30]
[357236453,1743925847110,-500.0,0.0006879,30]
[357236454,1743925847119,-500.0,0.0006879,30]
[357236455,1743925847128,-500.0,0.0006879,30]
[357236456,1743925847138,-252.0,0.0006879,30]
[357236457,1743925847148,-3935.0,0.0007,120]
[357236458,1743925847158,-153.38,0.00070972,120]
[357236459,1743925847167,-4697.43,0.00071372,2]
[357236460,1743925847177,-300.0,0.00072192,120]
[357236461,1743925847186,-251.55,0.000722,30]
[357236462,1743925847194,-206.36,0.000722,30]
[357236463,1743925847203,-500.0,0.00077091,120]
[357236464,1743925847212,-500.0,0.00077091,120]
[357236465,1743925847222,-500.0,0.00077091,120]
[357236466,1743925847231,-413.35,0.000785,30]
[357236467,1743925847240,-2000.0,0.0008,120]
[357236468,1743925847250,-495.0,0.0008,90]
[357236469,1743925847259,-4992.17956084,0.0008,120]
[357236470,1743925847267,-300.0,0.0008,120]
[357236471,1743925847277,-500.0,0.0008,120]
[357236472,1743925847286,-500.0,0.0008,120]
[357236473,1743925847295,-500.0,0.0008,120]
[357236474,1743925847304,-500.0,0.0008,120]
[357236475,1743925847313,-638.74129223,0.00082189,120]
[357236476,1743925847322,-500.0,0.00082189,120]
[357236478,1743925847331,-500.0,0.00082189,120]
[357236479,1743925847339,-500.0,0.00082189,120]
[357236480,1743925847349,-500.0,0.00082189,120]
[357236481,1743925847359,-500.0,0.00082189,120]
[357236482,1743925847369,-500.0,0.00082189,120]
[357236483,1743925847379,-500.0,0.00082189,120]
[357236484,1743925847388,-434.12455817,0.00082189,120]
[357236485,1743925847397,-500.0,0.00082189,120]
[357236486,1743925847407,-500.0,0.00082189,120]
[357236487,1743925847416,-500.0,0.00082189,120]
[357236488,1743925847425,-500.0,0.00082189,120]
[357236489,1743925847434,-500.0,0.00082189,120]
[357236490,1743925847443,-500.0,0.00082189,120]
[357236491,1743925847452,-500.0,0.00082189,120]
[357236492,1743925847462,-500.0,0.00082189,120]
[357236493,1743925847471,-500.0,0.00082189,120]
[357236494,1743925847483,-500.0,0.00082189,120]
[357236495,1743925847492,-500.0,0.00082189,120]
[357236496,1743925847501,-500.0,0.00082189,120]
[357236497,1743925847510,-500.0,0.00082189,120]
[357236498,1743925847519,-500.0,0.00082189,120]
[357236499,1743925847528,-500.0,0.00082189,120]
[357236500,1743925847537,-500.0,0.00082189,120]
[357236501,1743925847546,-500.0,0.00082189,120]
[357236502,1743925847555,-500.0,0.00082189,120]
[357236503,1743925847565,-500.0,0.00082189,120]
[357236504,1743925847574,-500.0,0.00082189,120]
[357236505,1743925847583,-500.0,0.00082189,120]
[357236506,1743925847591,-500.0,0.00082189,120]
[357236507,1743925847600,-500.0,0.00082189,120]
[357236508,1743925847609,-500.0,0.00082189,120]
[357236509,1743925847618,-451.08067115,0.00082189,120]
[357236510,1743925847630,-48.91932885,0.00082189,120]
[357236511,1743925847639,-500.0,0.00082189,120]
[357236512,1743925847648,-500.0,0.00082189,120]
[357236513,1743925847656,-500.0,0.00082189,120]
[357236514,1743925847665,-500.0,0.00082189,120]
[357236515,1743925847674,-500.0,0.00082189,120]
[357236516,1743925847683,-500.0,0.00082189,120]
[357236517,1743925847692,-500.0,0.00082189,120]
[357236518,1743925847701,-500.0,0.00082189,120]
[357236519,1743925847711,-500.0,0.00082189,120]
[357236520,1743925847720,-500.0,0.00082189,120]
[357236521,1743925847729,-500.0,0.00082189,120]
[357236522,1743925847738,-500.0,0.00082189,120]
[357236523,1743925847747,-500.0,0.00082189,120]
[357236524,1743925847756,-500.0,0.00082189,120]
[357236525,1743925847765,-500.0,0.0008219,120]
[357236526,1743925847775,-500.0,0.0008219,120]
[357236527,1743925847784,-500.0,0.0008219,120]
[357236528,1743925847793,-500.0,0.0008219,120]
[357236529,1743925847802,-500.0,0.0008219,120]
[357236530,1743925847811,-547.65966541,0.0008219,120]
[357236531,1743925847820,-500.0,0.0008219,120]
[357236532,1743925847829,-500.0,0.0008219,120]
[357236533,1743925847838,-500.0,0.0008219,120]
[357236534,1743925847847,-500.0,0.0008219,120]
[357236535,1743925847857,-500.0,0.0008219,120]
[357236536,1743925847866,-500.0,0.0008219,120]
[357236537,1743925847875,-500.0,0.0008219,120]
[357236538,1743925847885,-243.7200961,0.0008219,120]
[357236539,1743925847894,-500.0,0.0008219,120]
[357236540,1743925847904,-500.0,0.0008219,120]
[357236541,1743925847916,-500.0,0.0008219,120]
[357236542,1743925847925,-500.0,0.0008219,120]
[357236543,1743925847934,-468.52637061,0.0008219,120]
[357236544,1743925847944,-500.0,0.0008219,120]
[357236545,1743925847953,-500.0,0.0008219,120]
[357236546,1743925847963,-500.0,0.0008219,120]
[357236547,1743925847972,-500.0,0.0008219,120]
[357236548,1743925847980,-500.0,0.0008219,120]
[357236549,1743925847991,-1110.0,0.00082191,13]
[357236550,1743925848001,-356.29221736,0.00082191,120]
[357236551,1743925848011,-271.15,0.00082191,120]
[357236552,1743925848020,-271.15,0.00082191,120]
[357236553,1743925848030,-271.15,0.00082191,120]
[357236554,1743925848039,-271.15,0.00082191,120]
[357236555,1743925848048,-271.15,0.00082191,120]
[357236556,1743925848058,-271.15,0.00082191,120]
[357236557,1743925848068,-271.15,0.00082191,120]
[357236558,1743925848077,-271.15,0.00082191,120]
[357236559,1743925848088,-271.15,0.00082191,120]
[357236560,1743925848098,-271.15,0.00082191,120]
[357236561,1743925848108,-271.15,0.00082191,120]
[357236562,1743925848118,-271.15,0.00082191,120]
[357236563,1743925848128,-271.15,0.00082191,120]
[357236564,1743925848138,-271.15,0.00082191,120]
[357236565,1743925848148,-271.15,0.00082191,120]
[357236566,1743925848159,-271.15,0.00082191,120]
[357236567,1743925848169,-271.15,0.00082191,120]
[357236568,1743925848179,-271.15,0.00082191,120]
[357236569,1743925848189,-271.15,0.00082191,120]
[357236570,1743925848199,-271.15,0.00082191,120]
[357236571,1743925848208,-271.15,0.00082191,120]
[357236572,1743925848217,-271.15,0.00082191,120]
[357236573,1743925848227,-271.15,0.00082191,120]
[357236574,1743925848235,-271.27084263,0.00082191,120]
[357236575,1743925848244,-914.155829,0.00082191,120]
[357236576,1743925848253,-93.41170467,0.00082191,120]
[357236577,1743925848332,-200.0,0.00082189,120]
[357236578,1743925848342,-820.74412433,0.00082191,120]
[357236579,1743925848351,-914.155829,0.00082191,120]
[357236580,1743925848361,-914.155829,0.00082191,120]
[357236581,1743925848370,-914.155829,0.00082191,120]
[357236582,1743925848379,-914.155829,0.00082191,120]
[357236583,1743925848390,-914.155829,0.00082191,120]
[357236584,1743925848399,-914.155829,0.00082191,120]
[357236585,1743925848408,-439.06431749,0.00082191,120]
[357236586,1743925849335,-500.0,0.00082189,120]
[357236587,1743925849345,-60.93568251,0.00082191,120]
[357236588,1743925849354,-567.39404217,0.00082191,120]
[357236589,1743925849364,-500.0,0.00082191,120]
[357236590,1743925849373,-500.0,0.00082191,120]
[357236591,1743925849382,-503.34858766,0.00082191,120]
[357236592,1743925849391,-500.0,0.00082191,120]
[357236593,1743925849400,-500.0,0.00082191,30]
[357236594,1743925849409,-500.0,0.00082191,30]
[357236595,1743925849419,-500.0,0.00082191,120]
[357236596,1743925849427,-500.0,0.00082191,120]
[357236597,1743925849436,-500.0,0.00082191,120]
[357236598,1743925849446,-500.0,0.00082191,120]
[357236599,1743925849455,-500.0,0.00082191,120]
[357236600,1743925849464,-1000.0,0.00082191,120]
[357236601,1743925849475,-1000.0,0.00082191,120]
[357236602,1743925849484,-1000.0,0.00082191,120]
[357236603,1743925849493,-1000.0,0.00082191,120]
[357236604,1743925849503,-1000.0,0.00082191,120]
[357236605,1743925849512,-427.84980812,0.00082191,120]
[357236606,1743925849521,-1000.0,0.00082191,120]
[357236607,1743925849530,-1000.0,0.00082191,120]
[357236608,1743925849539,-1000.0,0.00082191,120]
[357236609,1743925849548,-1000.0,0.00082191,120]
[357236610,1743925849557,-1000.0,0.00082191,120]
[357236611,1743925849567,-1000.0,0.00082191,120]
[357236612,1743925849576,-1000.0,0.00082191,120]
[357236613,1743925849585,-1000.0,0.00082191,120]
[357236614,1743925849594,-1000.0,0.00082191,120]
[357236615,1743925849604,-1000.0,0.00082191,120]
[357236616,1743925849612,-1000.0,0.00082191,120]
[357236617,1743925849623,-1000.0,0.00082191,120]
[357236618,1743925849633,-264.96399724,0.00082191,120]
[357236619,1743925849642,-500.0,0.00082191,120]
[357236620,1743925849651,-482.77136046,0.00082191,120]
[357236621,1743925849661,-500.0,0.00082191,120]
[357236622,1743925849670,-500.0,0.00082191,120]
[357236623,1743925849679,-500.0,0.00082191,120]
[357236624,1743925849689,-500.0,0.00082191,120]
[357236625,1743925849699,-500.0,0.00082191,120]
[357236626,1743925849708,-323.39652377,0.00082191,120]
[357236627,1743925849718,-326.42705351,0.00082191,120]
[357236628,1743925849728,-500.0,0.00082191,120]
[357236629,1743925849737,-500.0,0.00082191,120]
[357236630,1743925849746,-500.0,0.00082191,120]
[357236631,1743925849756,-500.0,0.00082191,120]
[357236632,1743925849765,-500.0,0.00082191,120]
[357236633,1743925849774,-500.0,0.00082191,120]
[357236634,1743925849783,-500.0,0.00082191,120]
[357236635,1743925849792,-500.0,0.00082191,120]
[357236636,1743925849801,-500.0,0.00082191,120]
[357236637,1743925849810,-500.0,0.00082191,120]
[357236638,1743925849819,-500.0,0.00082191,120]
[357236639,1743925849827,-500.0,0.00082191,120]
[357236640,1743925849836,-500.0,0.00082191,120]
[357236641,1743925849845,-500.0,0.00082191,120]
[357236642,1743925849854,-500.0,0.00082191,120]
[357236643,1743925849863,-500.0,0.00082191,120]
[357236644,1743925849872,-500.0,0.00082191,120]
[357236645,1743925849881,-500.0,0.00082191,120]
[357236646,1743925849890,-500.0,0.00082191,120]
[357236647,1743925849900,-500.0,0.00082191,120]
[357236648,1743925849911,-586.81552029,0.00082191,120]
[357236649,1743925849920,-500.0,0.00082191,120]
[357236650,1743925849929,-500.0,0.00082191,120]
[357236651,1743925849938,-588.36,0.00082191,120]
[357236652,1743925849947,-500.0,0.00082191,120]
[357236653,1743925849960,-500.0,0.00082191,120]
[357236654,1743925849969,-500.0,0.00082191,120]
[357236655,1743925849978,-500.0,0.00082191,120]
[357236656,1743925849988,-500.0,0.00082191,120]
[357236657,1743925849997,-500.0,0.00082191,120]
[357236658,1743925850007,-500.0,0.00082191,120]
[357236659,1743925850016,-535.68406834,0.00082191,120]
[357236660,1743925850025,-502.1693456,0.00082191,120]
[357236661,1743925850034,-500.0,0.00082191,120]
[357236662,1743925850043,-500.0,0.00082191,120]
[357236663,1743925850052,-500.0,0.00082191,120]
[357236664,1743925850061,-500.0,0.00082191,2]
[357236665,1743925850070,-500.0,0.00082191,120]
[357236666,1743925850079,-500.0,0.00082191,2]
[357236667,1743925850089,-500.0,0.00082191,120]
[357236668,1743925850098,-500.0,0.00082191,2]
[357236669,1743925850107,-500.0,0.00082191,120]
[357236670,1743925850116,-500.0,0.00082191,2]
[357236671,1743925850126,-500.0,0.00082191,120]
[357236672,1743925850136,-500.0,0.00082191,2]
[357236673,1743925850146,-500.0,0.00082191,120]
[357236674,1743925850156,-500.0,0.00082191,2]
[357236675,1743925850166,-500.0,0.00082191,120]
[357236676,1743925850176,-500.0,0.00082191,2]
[357236677,1743925850186,-168.50056397,0.00082191,120]
[357236678,1743925850195,-466.24432931,0.00082191,2]
[357236679,1743925850205,-500.0,0.00082191,120]
[357236680,1743925850214,-500.0,0.00082191,120]
[357236681,1743925850223,-500.0,0.00082191,120]
[357236682,1743925850233,-500.0,0.00082191,120]
[357236683,1743925850242,-500.0,0.00082191,120]
[357236684,1743925850252,-500.0,0.00082191,120]
[357236685,1743925850262,-500.0,0.00082191,120]
[357236686,1743925850271,-509.8873177,0.00082191,120]
[357236687,1743925850280,-500.0,0.00082191,120]
[357236688,1743925850290,-500.0,0.00082191,120]
[357236689,1743925850300,-648.01913929,0.00082191,120]
[357236690,1743925850309,-500.0,0.00082191,120]
[357236691,1743925850319,-500.0,0.00082191,120]
[357236692,1743925850328,-500.0,0.00082191,120]
[357236693,1743925850337,-500.0,0.00082191,120]
[357236694,1743925850347,-500.0,0.00082191,120]
[357236695,1743925850357,-500.0,0.00082191,120]
[357236696,1743925850366,-500.0,0.00082191,120]
[357236697,1743925850376,-500.0,0.00082191,120]
[357236698,1743925850386,-471.36740986,0.00082191,120]
[357236699,1743925850396,-500.0,0.00082191,120]
[357236700,1743925850406,-500.0,0.00082191,120]
[357236701,1743925850415,-500.0,0.00082191,120]
[357236702,1743925850424,-500.0,0.00082191,120]
[357236703,1743925850434,-256.46576745,0.00082191,120]
[357236704,1743925850443,-500.0,0.00082191,120]
[357236705,1743925850452,-500.0,0.00082191,120]
[357236706,1743925850462,-500.0,0.00082191,120]
[357236707,1743925850471,-500.0,0.00082191,120]
[357236708,1743925850481,-500.0,0.00082191,120]
[357236709,1743925850490,-500.0,0.00082191,120]
[357236710,1743925850500,-500.0,0.00082191,120]
[357236711,1743925850509,-500.0,0.00082191,120]
[357236712,1743925850519,-500.0,0.00082191,120]
[357236713,1743925850528,-500.0,0.00082191,120]
[357236714,1743925850538,-284.64719306,0.00082191,120]
[357236715,1743925850546,-500.0,0.00082191,120]
[357236716,1743925850556,-500.0,0.00082191,120]
[357236717,1743925850565,-500.0,0.00082191,120]
[357236718,1743925850575,-500.0,0.00082191,120]
[357236719,1743925850585,-500.0,0.00082191,120]
[357236720,1743925850595,-500.0,0.00082191,120]
[357236721,1743925850605,-500.0,0.00082191,120]
[357236722,1743925850615,-500.0,0.00082191,120]
[357236723,1743925850626,-500.0,0.00082191,120]
[357236724,1743925850636,-500.0,0.00082191,120]
[357236725,1743925850645,-500.0,0.00082191,120]
[357236726,1743925850655,-500.0,0.00082191,120]
[357236727,1743925850665,-500.0,0.00082191,120]
[357236728,1743925850675,-500.0,0.00082191,30]
[357236729,1743925850684,-500.0,0.00082191,120]
[357236730,1743925850694,-500.0,0.00082191,30]
[357236731,1743925850703,-500.0,0.00082191,30]
[357236732,1743925850713,-500.0,0.00082191,120]
[357236733,1743925850722,-500.0,0.00082191,120]
[357236734,1743925850731,-526.0,0.00082191,30]
[357236735,1743925850741,-500.0,0.00082191,120]
[357236736,1743925850750,-500.0,0.00082191,120]
[357236737,1743925850760,-500.0,0.00082191,120]
[357236738,1743925850770,-281.78,0.00082191,120]
[357236739,1743925850779,-500.0,0.00082191,120]
[357236740,1743925850789,-500.0,0.00082191,120]
[357236741,1743925850798,-500.0,0.00082191,120]
[357236742,1743925850807,-500.0,0.00082191,120]
[357236743,1743925850817,-500.0,0.00082191,120]
[357236744,1743925850826,-500.0,0.00082191,120]
[357236745,1743925850835,-500.0,0.00082191,120]
[357236746,1743925850845,-500.0,0.00082191,120]
[357236747,1743925850854,-500.0,0.00082191,120]
[357236748,1743925850863,-613.58152487,0.00082191,120]
[357236749,1743925850872,-500.0,0.00082191,120]
[357236750,1743925850882,-500.0,0.00082191,120]
[357236751,1743925850892,-500.0,0.00082191,120]
[357236752,1743925850903,-500.0,0.00082191,120]
[357236753,1743925850915,-500.0,0.00082191,120]
[357236754,1743925850924,-500.0,0.00082191,120]
[357236755,1743925850934,-500.0,0.00082191,120]
[357236756,1743925850944,-500.0,0.00082191,120]
[357236757,1743925850953,-500.0,0.00082191,120]
[357236758,1743925850962,-500.0,0.00082191,120]
[357236759,1743925850972,-500.0,0.00082191,120]
[357236760,1743925850981,-500.0,0.00082191,120]
[357236761,1743925850991,-500.0,0.00082191,120]
[357236762,1743925851000,-500.0,0.00082191,120]
[357236763,1743925851010,-500.0,0.00082191,120]
[357236764,1743925851020,-500.0,0.00082191,120]
[357236765,1743925851029,-500.0,0.00082191,120]
[357236766,1743925851038,-500.0,0.00082191,120]
[357236767,1743925851047,-500.0,0.00082191,120]
[357236768,1743925851057,-136.03483843,0.00082191,120]
[357236769,1743925851152,-363.96516157,0.00082191,120]
[357236770,1743925851162,-338.84,0.00082191,120]
[357236771,1743925851171,-405.73483843,0.00082191,120]
[357236772,1743925851209,156.46,0.00013699,2]
[357236774,1743926375514,1466.30758786,0.00044404,10]
[357236775,1743926377748,271.5,0.00044404,10]
[357236776,1743926383798,250.0,0.00044404,120]
[357236777,1743926390408,984.62,0.00044404,30]
[357236778,1743926403203,2155.28903583,0.00044404,120]
[357236779,1743926403254,379.5,0.00044404,30]
[357236780,1743926404097,1031.57664207,0.00044404,30]
[357236781,1743926410013,629.0,0.00044404,120]
[357236782,1743926435447,204.52767305,0.0004442,30]
[357236783,1743926448332,818.28418889,0.0004442,10]
[357236784,1743926457338,218.0,0.0004442,120]
[357236785,1743926485409,996.0,0.00025,60]
[357236786,1743926626215,250.0,0.0004442,120]
[357236787,1743926646576,290.5597944,0.0004442,60]
[357236788,1743926703860,1000.0,0.0004442,30]
[357236789,1743926705002,1000.0,0.0004442,30]
[357236813,1743927032925,-151.21,0.00026849,2]
[357236815,1743927032934,-454.61480134,0.000349,2]
[357236817,1743927032943,-5035.8093683,0.00035,30]
[357236819,1743927032953,-454.61480134,0.00036775,2]
[357236821,1743927032962,-150.0,0.00036875,30]
[357236823,1743927032971,-150.0,0.00036875,30]
[357236825,1743927032981,-150.0,0.00036875,30]
[357236827,1743927032991,-150.0,0.00036875,30]
[357236829,1743927032999,-179.90307129,0.00036875,30]
[357236831,1743927033010,-381.68826411,0.00036875,30]
[357236833,1743927033020,-213.24705837,0.00036875,30]
[357236835,1743927033029,-1172.00260618,0.00036875,30]
[357236837,1743927033039,-429.78840388,0.00036875,30]
[357236839,1743927033048,-164.0556367,0.000372,103]
[357236841,1743927033059,-2232.03243856,0.000372,103]
[357236843,1743927033070,-250.0,0.000383,100]
[357236845,1743927033079,-150.0,0.000392,2]
[357236847,1743927033089,-348.75792351,0.0004,120]
[357236849,1743927033099,-98.72104937,0.0004,120]
[357236863,1743927033234,-101.27895063,0.0004,120]
[357236865,1743927033245,-161.0,0.00041,14]
[357236867,1743927033255,-200.0,0.00042,120]
[357236869,1743927033266,-160.03,0.000426,7]
[357236871,1743927033275,-161.0,0.00043151,90]
[357236872,1743927033285,-200.0,0.00044,120]
[357236874,1743927033295,-440.0,0.00044,30]
[357236875,1743927033305,-880.0,0.000441,120]
[357236876,1743927033315,-197.94499006,0.00044124,60]
[357236877,1743927033352,-527.55500994,0.00044124,60]
[357236878,1743927033362,-157.45,0.000443,36]
[357236879,1743927033373,-157.45,0.000443,36]
[357236880,1743927033383,-157.45,0.000443,36]
[357236881,1743927033392,-157.45,0.000443,36]
[357236882,1743927033403,-157.45,0.000443,36]
[357236883,1743927033413,-157.45,0.000443,36]
[357236884,1743927033423,-157.45,0.000443,36]
[357236885,1743927033433,-157.45,0.000443,36]
[357236886,1743927033443,-157.45,0.000443,36]
[357236887,1743927033453,-157.45,0.000443,36]
[357236888,1743927033464,-157.45,0.000443,36]
[357236889,1743927033474,-157.45,0.000443,36]
[357236890,1743927033484,-2000.0,0.00044383,120]
[357236891,1743927033494,-1000.0,0.00044404,10]
[357236892,1743927033503,-299.23,0.0004442,30]
[357236893,1743927033513,-641.50297604,0.00044657,120]
[357236896,1743927038380,-1358.49702396,0.00044657,120]
[357236897,1743927038390,-175.0,0.00044657,2]